[Event "Early-Titled-Tuesday-Blitz-March-19-2024"]
[Site "Chess.com"]
[Date "2024.03.19"]
[Round "5"]
[White "KnightmareJoker"]
[Black "AA95"]
[Result "1-0"]
[WhiteElo "2305"]
[BlackElo "2461"]
[TimeControl "180+1"]
[EndTime "8:56:58 PDT"]
[Termination "KnightmareJoker won on time"]

1. e4 {[%clk 0:03:00.9]} 1... c5 {[%clk 0:02:59]} 2. Nf3 {[%clk 0:03:01.3]} 2...
e6 {[%clk 0:02:54.9]} 3. d4 {[%clk 0:03:01.5]} 3... cxd4 {[%clk 0:02:55.2]} 4.
Nxd4 {[%clk 0:03:02.4]} 4... Nf6 {[%clk 0:02:55.2]} 5. Nc3 {[%clk 0:03:02.9]}
5... d6 {[%clk 0:02:55]} 6. Be2 {[%clk 0:03:01]} 6... Be7 {[%clk 0:02:54.6]} 7.
Be3 {[%clk 0:02:53.7]} 7... a6 {[%clk 0:02:47.9]} 8. O-O {[%clk 0:02:51.7]} 8...
Qc7 {[%clk 0:02:41.6]} 9. f4 {[%clk 0:02:51.6]} 9... Nc6 {[%clk 0:02:35.4]} 10.
Kh1 {[%clk 0:02:39.8]} 10... Nxd4 {[%clk 0:02:15.4]} 11. Bxd4 {[%clk 0:02:38.9]}
11... e5 {[%clk 0:02:08.9]} 12. Be3 {[%clk 0:02:32.6]} 12... Be6 {[%clk
0:01:45.8]} 13. f5 {[%clk 0:02:28.5]} 13... Bc4 {[%clk 0:01:45.6]} 14. Rf3
{[%clk 0:02:20.2]} 14... b5 {[%clk 0:01:32.7]} 15. Rg3 {[%clk 0:02:19.4]} 15...
b4 {[%clk 0:00:58.4]} 16. Nd5 {[%clk 0:01:54.1]} 16... Bxd5 {[%clk 0:00:51.5]}
17. exd5 {[%clk 0:01:53.7]} 17... Kf8 {[%clk 0:00:27.9]} 18. Bf3 {[%clk
0:01:45.8]} 18... a5 {[%clk 0:00:26.6]} 19. Qd3 {[%clk 0:01:33.5]} 19... Rc8
{[%clk 0:00:25.2]} 20. Rc1 {[%clk 0:01:32.7]} 20... Qc4 {[%clk 0:00:24.1]} 21.
b3 {[%clk 0:01:09.7]} 21... Qxd3 {[%clk 0:00:22.4]} 22. cxd3 {[%clk 0:01:10.6]}
22... Rxc1+ {[%clk 0:00:21.7]} 23. Bxc1 {[%clk 0:01:11.5]} 23... h5 {[%clk
0:00:17.5]} 24. Be4 {[%clk 0:01:11.6]} 24... h4 {[%clk 0:00:16.8]} 25. Re3
{[%clk 0:01:10]} 25... h3 {[%clk 0:00:15.5]} 26. g3 {[%clk 0:01:08.3]} 26... Ng4
{[%clk 0:00:15.4]} 27. Re2 {[%clk 0:01:08.3]} 27... Bd8 {[%clk 0:00:10.2]} 28.
Bf3 {[%clk 0:01:06.1]} 28... Nf6 {[%clk 0:00:06.2]} 29. Be3 {[%clk 0:01:06.8]}
29... Nd7 {[%clk 0:00:06]} 30. Rc2 {[%clk 0:01:03.7]} 30... g6 {[%clk
0:00:06.4]} 31. Rc8 {[%clk 0:01:01.7]} 31... Kg7 {[%clk 0:00:03.8]} 32. Bg4
{[%clk 0:00:48.6]} 32... Bb6 {[%clk 0:00:03.8]} 33. f6+ {[%clk 0:00:44.4]} 33...
Kxf6 {[%clk 0:00:02.4]} 34. Rxh8 {[%clk 0:00:43.1]} 34... Bxe3 {[%clk
0:00:02.5]} 35. Bxd7 {[%clk 0:00:43.7]} 35... Bc1 {[%clk 0:00:01.4]} 36. Bxh3
{[%clk 0:00:43.1]} 36... Bb2 {[%clk 0:00:01.5]} 37. Ra8 {[%clk 0:00:42.8]} 37...
Ba3 {[%clk 0:00:01.6]} 38. Rxa5 {[%clk 0:00:43.4]} 38... Kg5 {[%clk 0:00:01.2]}
39. Ra7 {[%clk 0:00:43.5]} 1-0

[Event "Early-Titled-Tuesday-Blitz-March-19-2024"]
[Site "Chess.com"]
[Date "2024.03.19"]
[Round "5"]
[White "NovozhilovSemen"]
[Black "Arystanner"]
[Result "0-1"]
[WhiteElo "2631"]
[BlackElo "2842"]
[TimeControl "180+1"]
[EndTime "8:56:59 PDT"]
[Termination "Arystanner won by resignation"]

1. d4 {[%clk 0:02:57.9]} 1... Nf6 {[%clk 0:02:58.6]} 2. Nf3 {[%clk 0:02:56.7]}
2... g6 {[%clk 0:02:59]} 3. Nc3 {[%clk 0:02:53.8]} 3... d5 {[%clk 0:02:58.7]} 4.
Bf4 {[%clk 0:02:53.6]} 4... Bg7 {[%clk 0:02:58.9]} 5. Nb5 {[%clk 0:02:52.2]}
5... Na6 {[%clk 0:02:59]} 6. e3 {[%clk 0:02:52.4]} 6... O-O {[%clk 0:02:56.8]}
7. Be2 {[%clk 0:02:52.4]} 7... c5 {[%clk 0:02:56.6]} 8. O-O {[%clk 0:02:50.4]}
8... Bd7 {[%clk 0:02:39.6]} 9. a4 {[%clk 0:02:48.2]} 9... c4 {[%clk 0:02:35.9]}
10. h3 {[%clk 0:02:35.5]} 10... Qb6 {[%clk 0:02:27.4]} 11. b3 {[%clk 0:02:34.5]}
11... Rfc8 {[%clk 0:02:19.3]} 12. Ne5 {[%clk 0:02:23.2]} 12... Bxb5 {[%clk
0:02:14.7]} 13. axb5 {[%clk 0:02:22.1]} 13... Qxb5 {[%clk 0:02:15.6]} 14. bxc4
{[%clk 0:01:37]} 14... dxc4 {[%clk 0:02:15.3]} 15. Qb1 {[%clk 0:01:37.9]} 15...
Qxb1 {[%clk 0:02:08.3]} 16. Rfxb1 {[%clk 0:01:38.8]} 16... Nd5 {[%clk
0:01:57.7]} 17. Rxb7 {[%clk 0:01:34.9]} 17... Nab4 {[%clk 0:01:57.5]} 18. Bxc4
{[%clk 0:00:46.5]} 18... Nxf4 {[%clk 0:01:39]} 19. Rxb4 {[%clk 0:00:43.6]} 19...
Bxe5 {[%clk 0:01:20.1]} 20. dxe5 {[%clk 0:00:41.9]} 20... Ne6 {[%clk 0:01:19.9]}
21. Bxe6 {[%clk 0:00:23.7]} 21... fxe6 {[%clk 0:01:19.9]} 22. Ra6 {[%clk
0:00:24.4]} 22... Kf7 {[%clk 0:01:17.2]} 23. Rf4+ {[%clk 0:00:23.9]} 23... Ke8
{[%clk 0:01:17.6]} 24. Rxe6 {[%clk 0:00:24.5]} 24... Rxc2 {[%clk 0:01:18.3]} 25.
Ra6 {[%clk 0:00:24.1]} 25... Rb2 {[%clk 0:01:09.4]} 26. e6 {[%clk 0:00:23.3]}
26... Rb6 {[%clk 0:01:09]} 27. Rxb6 {[%clk 0:00:17]} 27... axb6 {[%clk
0:01:09.1]} 28. Rf7 {[%clk 0:00:17.7]} 28... b5 {[%clk 0:00:52.6]} 29. Rxh7
{[%clk 0:00:17.3]} 29... Ra1+ {[%clk 0:00:53.3]} 30. Kh2 {[%clk 0:00:17.8]}
30... Kd8 {[%clk 0:00:53.9]} 31. Rh4 {[%clk 0:00:13.5]} 31... Ra4 {[%clk
0:00:54.5]} 32. Rh6 {[%clk 0:00:08]} 32... b4 {[%clk 0:00:52.4]} 33. Rh4 {[%clk
0:00:08.3]} 33... Kc7 {[%clk 0:00:51.3]} 34. Rd4 {[%clk 0:00:08.1]} 34... Kc6
{[%clk 0:00:51.6]} 35. g4 {[%clk 0:00:07.3]} 35... Kc5 {[%clk 0:00:52.1]} 36. h4
{[%clk 0:00:07.7]} 36... Ra6 {[%clk 0:00:52.4]} 37. h5 {[%clk 0:00:07.6]} 37...
gxh5 {[%clk 0:00:53.3]} 38. gxh5 {[%clk 0:00:08.5]} 38... b3 {[%clk 0:00:53.8]}
39. Rd3 {[%clk 0:00:03.6]} 39... Kc4 {[%clk 0:00:53]} 40. h6 {[%clk 0:00:03.6]}
40... Kxd3 {[%clk 0:00:50.5]} 0-1

[Event "Early-Titled-Tuesday-Blitz-March-19-2024"]
[Site "Chess.com"]
[Date "2024.03.19"]
[Round "5"]
[White "SmirnovAlexandrA"]
[Black "Nuvas"]
[Result "1-0"]
[WhiteElo "2633"]
[BlackElo "2820"]
[TimeControl "180+1"]
[EndTime "8:57:00 PDT"]
[Termination "SmirnovAlexandrA won on time"]

1. e4 {[%clk 0:03:00.9]} 1... e5 {[%clk 0:02:59.5]} 2. d4 {[%clk 0:03:00.6]}
2... exd4 {[%clk 0:02:59.6]} 3. Qxd4 {[%clk 0:03:01.5]} 3... Nc6 {[%clk
0:02:59.8]} 4. Qe3 {[%clk 0:03:02.2]} 4... Nf6 {[%clk 0:02:59.2]} 5. Nc3 {[%clk
0:03:02.8]} 5... Bb4 {[%clk 0:02:57.8]} 6. Bd2 {[%clk 0:03:03]} 6... d6 {[%clk
0:02:56.4]} 7. O-O-O {[%clk 0:03:02.6]} 7... O-O {[%clk 0:02:57.1]} 8. Qg3
{[%clk 0:03:02.8]} 8... Ne5 {[%clk 0:02:38.7]} 9. f3 {[%clk 0:03:02.6]} 9... Be6
{[%clk 0:02:33.8]} 10. h4 {[%clk 0:03:00.2]} 10... Bc4 {[%clk 0:02:20.8]} 11. h5
{[%clk 0:02:51.3]} 11... Bxf1 {[%clk 0:02:18.2]} 12. Rxf1 {[%clk 0:02:49.8]}
12... Kh8 {[%clk 0:01:56.8]} 13. h6 {[%clk 0:02:49.1]} 13... g6 {[%clk
0:01:57.4]} 14. Bg5 {[%clk 0:02:36]} 14... Bxc3 {[%clk 0:01:49.1]} 15. bxc3
{[%clk 0:02:36.9]} 15... Qe7 {[%clk 0:01:45.5]} 16. Qh4 {[%clk 0:02:06.9]} 16...
Ned7 {[%clk 0:01:43.1]} 17. Ne2 {[%clk 0:02:03.3]} 17... Qe6 {[%clk 0:01:39.7]}
18. Nd4 {[%clk 0:02:01.7]} 18... Qxa2 {[%clk 0:01:29]} 19. Bxf6+ {[%clk
0:02:00]} 19... Kg8 {[%clk 0:01:29.7]} 20. Nf5 {[%clk 0:01:34.9]} 20... Rfe8
{[%clk 0:01:23.2]} 21. Ne7+ {[%clk 0:01:32.5]} 21... Rxe7 {[%clk 0:01:23.3]} 22.
Bxe7 {[%clk 0:01:33.4]} 22... Re8 {[%clk 0:01:14.3]} 23. Bf6 {[%clk 0:01:26]}
23... Qe6 {[%clk 0:01:06.9]} 24. Bd4 {[%clk 0:01:20.8]} 24... c5 {[%clk
0:01:06.8]} 25. Be3 {[%clk 0:01:19.3]} 25... Qc4 {[%clk 0:01:07.1]} 26. Kd2
{[%clk 0:01:16.1]} 26... b5 {[%clk 0:01:02.2]} 27. Rb1 {[%clk 0:01:01.2]} 27...
a5 {[%clk 0:00:58.9]} 28. Qf4 {[%clk 0:00:40.9]} 28... Re6 {[%clk 0:00:27.2]}
29. Rhd1 {[%clk 0:00:37.9]} 29... b4 {[%clk 0:00:26.2]} 30. cxb4 {[%clk
0:00:37.2]} 30... cxb4 {[%clk 0:00:20.3]} 31. Ke1 {[%clk 0:00:34.1]} 31... Ne5
{[%clk 0:00:18.5]} 32. Rxd6 {[%clk 0:00:24]} 1-0

[Event "Early-Titled-Tuesday-Blitz-March-19-2024"]
[Site "Chess.com"]
[Date "2024.03.19"]
[Round "5"]
[White "VitaliyBernadskiy"]
[Black "GM_dmitrij"]
[Result "0-1"]
[WhiteElo "2877"]
[BlackElo "3086"]
[TimeControl "180+1"]
[EndTime "8:57:01 PDT"]
[Termination "GM_dmitrij won on time"]

1. d4 {[%clk 0:03:00.9]} 1... Nf6 {[%clk 0:02:57.5]} 2. Nf3 {[%clk 0:03:01.1]}
2... g6 {[%clk 0:02:53.5]} 3. c4 {[%clk 0:03:00.6]} 3... Bg7 {[%clk 0:02:54]} 4.
Nc3 {[%clk 0:03:00.9]} 4... O-O {[%clk 0:02:54.4]} 5. e4 {[%clk 0:03:01]} 5...
d6 {[%clk 0:02:55]} 6. Be2 {[%clk 0:03:01.4]} 6... e5 {[%clk 0:02:55.3]} 7. O-O
{[%clk 0:03:01.9]} 7... exd4 {[%clk 0:02:55.7]} 8. Nxd4 {[%clk 0:03:02]} 8...
Re8 {[%clk 0:02:56.6]} 9. f3 {[%clk 0:03:02.2]} 9... c6 {[%clk 0:02:56.9]} 10.
Kh1 {[%clk 0:02:53.3]} 10... Nbd7 {[%clk 0:02:55.5]} 11. Bg5 {[%clk 0:02:30.1]}
11... Qb6 {[%clk 0:02:49.9]} 12. Nb3 {[%clk 0:02:23.4]} 12... a5 {[%clk
0:02:49.5]} 13. Qc2 {[%clk 0:01:56.6]} 13... a4 {[%clk 0:02:45.1]} 14. Nd2
{[%clk 0:01:56.8]} 14... a3 {[%clk 0:02:41.2]} 15. b3 {[%clk 0:01:50.4]} 15...
Qa5 {[%clk 0:02:40.6]} 16. Bh4 {[%clk 0:01:33]} 16... Ng4 {[%clk 0:02:30.6]} 17.
Rfc1 {[%clk 0:01:28.7]} 17... Ne3 {[%clk 0:01:20.6]} 18. Qd3 {[%clk 0:01:27.9]}
18... Nf5 {[%clk 0:01:12.4]} 19. exf5 {[%clk 0:00:57.5]} 19... Nc5 {[%clk
0:01:11.6]} 20. Qc2 {[%clk 0:00:31.2]} 20... Bxc3 {[%clk 0:00:49]} 21. Qxc3
{[%clk 0:00:32.1]} 21... Qxc3 {[%clk 0:00:49.3]} 22. Rxc3 {[%clk 0:00:31.8]}
22... Rxe2 {[%clk 0:00:49.9]} 23. Ne4 {[%clk 0:00:16.8]} 23... Nxe4 {[%clk
0:00:49.9]} 24. fxe4 {[%clk 0:00:17.7]} 24... Rxe4 {[%clk 0:00:50.2]} 25. Bg3
{[%clk 0:00:15.5]} 25... Bxf5 {[%clk 0:00:45]} 26. Bxd6 {[%clk 0:00:15.6]} 26...
Re2 {[%clk 0:00:45.7]} 27. h3 {[%clk 0:00:11.6]} 27... Be4 {[%clk 0:00:45]} 28.
Rg3 {[%clk 0:00:11.4]} 28... f5 {[%clk 0:00:31.6]} 29. b4 {[%clk 0:00:06.5]}
29... Rd8 {[%clk 0:00:27.5]} 30. c5 {[%clk 0:00:06]} 30... Bd5 {[%clk 0:00:26]}
31. Rd1 {[%clk 0:00:04.4]} 31... Rxa2 {[%clk 0:00:25.3]} 32. Rdd3 {[%clk
0:00:04.3]} 32... Ra8 {[%clk 0:00:24.4]} 0-1

[Event "Early-Titled-Tuesday-Blitz-March-19-2024"]
[Site "Chess.com"]
[Date "2024.03.19"]
[Round "5"]
[White "Shuvalov"]
[Black "Sofia_Blokhin"]
[Result "1/2-1/2"]
[WhiteElo "2568"]
[BlackElo "2263"]
[TimeControl "180+1"]
[EndTime "8:57:01 PDT"]
[Termination "Game drawn by repetition"]

1. d4 {[%clk 0:02:51.5]} 1... f5 {[%clk 0:02:59.1]} 2. c4 {[%clk 0:02:49.2]}
2... Nf6 {[%clk 0:02:57.9]} 3. Nc3 {[%clk 0:02:48]} 3... g6 {[%clk 0:02:58.1]}
4. h4 {[%clk 0:02:42.8]} 4... Bg7 {[%clk 0:02:55.4]} 5. h5 {[%clk 0:02:42.8]}
5... d6 {[%clk 0:02:49.9]} 6. h6 {[%clk 0:02:40.4]} 6... Bf8 {[%clk 0:02:49.6]}
7. Nf3 {[%clk 0:02:39.7]} 7... e6 {[%clk 0:02:47.9]} 8. Qc2 {[%clk 0:02:35.1]}
8... Be7 {[%clk 0:02:47.5]} 9. e4 {[%clk 0:02:33.7]} 9... fxe4 {[%clk
0:02:44.9]} 10. Nxe4 {[%clk 0:02:34.6]} 10... Nc6 {[%clk 0:02:43.8]} 11. Bd2
{[%clk 0:02:26.3]} 11... b6 {[%clk 0:02:37.2]} 12. Bd3 {[%clk 0:02:24.8]} 12...
Rg8 {[%clk 0:02:14.5]} 13. Neg5 {[%clk 0:02:19.8]} 13... Qd7 {[%clk 0:02:07.9]}
14. O-O-O {[%clk 0:02:16.8]} 14... Bb7 {[%clk 0:02:07.2]} 15. Rde1 {[%clk
0:02:15.2]} 15... e5 {[%clk 0:02:04.2]} 16. dxe5 {[%clk 0:02:13]} 16... dxe5
{[%clk 0:02:02.6]} 17. Nxe5 {[%clk 0:02:02.4]} 17... Nxe5 {[%clk 0:02:02.5]} 18.
Rxe5 {[%clk 0:02:02.8]} 18... O-O-O {[%clk 0:02:00.2]} 19. Rh3 {[%clk
0:01:28.1]} 19... Ng4 {[%clk 0:01:57.1]} 20. Rd5 {[%clk 0:01:13.8]} 20... Bxd5
{[%clk 0:01:53.4]} 21. cxd5 {[%clk 0:01:14.7]} 21... Nxf2 {[%clk 0:01:48.8]} 22.
Ba6+ {[%clk 0:01:10.2]} 22... Kb8 {[%clk 0:01:48.3]} 23. Rc3 {[%clk 0:01:08.6]}
23... Bb4 {[%clk 0:01:35.5]} 24. Rc4 {[%clk 0:00:51.9]} 24... Bxd2+ {[%clk
0:01:31.5]} 25. Qxd2 {[%clk 0:00:52.8]} 25... Qxd5 {[%clk 0:01:27.5]} 26. Qxd5
{[%clk 0:00:51.9]} 26... Rxd5 {[%clk 0:01:27.1]} 27. Nxh7 {[%clk 0:00:51.4]}
27... Rd1+ {[%clk 0:01:22.5]} 28. Kc2 {[%clk 0:00:51.4]} 28... Rgd8 {[%clk
0:01:21.6]} 29. Rf4 {[%clk 0:00:48.7]} 29... Nd3 {[%clk 0:01:15.3]} 30. Re4
{[%clk 0:00:40.7]} 30... Nc5 {[%clk 0:01:11]} 31. Rg4 {[%clk 0:00:31.5]} 31...
Nxa6 {[%clk 0:01:09.5]} 32. Rxg6 {[%clk 0:00:31.8]} 32... R8d3 {[%clk
0:01:04.4]} 33. a3 {[%clk 0:00:29.7]} 33... R1d2+ {[%clk 0:01:02.3]} 34. Kb1
{[%clk 0:00:29.5]} 34... Rb3 {[%clk 0:00:59.4]} 35. Kc1 {[%clk 0:00:29.1]} 35...
Rbxb2 {[%clk 0:00:58.7]} 36. Nf6 {[%clk 0:00:27.4]} 36... Nc5 {[%clk 0:00:56.1]}
37. Nd7+ {[%clk 0:00:23.9]} 37... Nxd7 {[%clk 0:00:45.1]} 38. h7 {[%clk
0:00:24.3]} 38... Rbc2+ {[%clk 0:00:34.5]} 39. Kb1 {[%clk 0:00:24.1]} 39... Rb2+
{[%clk 0:00:21.2]} 40. Kc1 {[%clk 0:00:23.7]} 40... Rbc2+ {[%clk 0:00:16.8]} 41.
Kb1 {[%clk 0:00:23.9]} 41... Rb2+ {[%clk 0:00:17.1]} 42. Kc1 {[%clk 0:00:24.3]}
1/2-1/2

[Event "Early-Titled-Tuesday-Blitz-March-19-2024"]
[Site "Chess.com"]
[Date "2024.03.19"]
[Round "5"]
[White "Lion-Al-Messi"]
[Black "esrosenberg"]
[Result "1-0"]
[WhiteElo "2625"]
[BlackElo "2452"]
[TimeControl "180+1"]
[EndTime "8:57:02 PDT"]
[Termination "Lion-Al-Messi won on time"]

1. e4 {[%clk 0:03:00.9]} 1... e6 {[%clk 0:03:00]} 2. d4 {[%clk 0:03:00.5]} 2...
d5 {[%clk 0:03:00.6]} 3. exd5 {[%clk 0:03:00.9]} 3... exd5 {[%clk 0:03:01]} 4.
Bd3 {[%clk 0:03:01.1]} 4... c5 {[%clk 0:03:01.3]} 5. Nf3 {[%clk 0:03:00.8]} 5...
c4 {[%clk 0:03:01.1]} 6. Be2 {[%clk 0:03:00.6]} 6... Nf6 {[%clk 0:03:01.2]} 7.
b3 {[%clk 0:03:00.4]} 7... cxb3 {[%clk 0:03:01.5]} 8. axb3 {[%clk 0:03:01.3]}
8... Bd6 {[%clk 0:02:58.1]} 9. O-O {[%clk 0:03:01.1]} 9... O-O {[%clk
0:02:58.2]} 10. Bg5 {[%clk 0:03:01.3]} 10... h6 {[%clk 0:02:52.1]} 11. Bh4
{[%clk 0:03:01]} 11... Re8 {[%clk 0:02:48.8]} 12. c4 {[%clk 0:02:59.9]} 12...
Be6 {[%clk 0:02:46.4]} 13. Nc3 {[%clk 0:02:58.5]} 13... Be7 {[%clk 0:02:41.1]}
14. Ne5 {[%clk 0:02:50.6]} 14... Nc6 {[%clk 0:02:35.7]} 15. Nxc6 {[%clk
0:02:33.8]} 15... bxc6 {[%clk 0:02:35.8]} 16. Na4 {[%clk 0:02:33.4]} 16... Ne4
{[%clk 0:02:29.2]} 17. Bxe7 {[%clk 0:02:32]} 17... Qxe7 {[%clk 0:02:30.1]} 18.
Bf3 {[%clk 0:02:31.1]} 18... Ng5 {[%clk 0:02:09.9]} 19. Nc5 {[%clk 0:02:27.2]}
19... Qf6 {[%clk 0:02:05.8]} 20. Be2 {[%clk 0:02:13.7]} 20... dxc4 {[%clk
0:01:58.1]} 21. bxc4 {[%clk 0:02:10.8]} 21... Red8 {[%clk 0:01:55.8]} 22. Qa4
{[%clk 0:01:59.6]} 22... Rxd4 {[%clk 0:01:47.4]} 23. Qxc6 {[%clk 0:01:47.2]}
23... Rad8 {[%clk 0:01:47.3]} 24. Nxe6 {[%clk 0:01:40.9]} 24... Nxe6 {[%clk
0:01:31.9]} 25. Rxa7 {[%clk 0:01:39.8]} 25... Rd2 {[%clk 0:01:32.5]} 26. Bf3
{[%clk 0:01:37.4]} 26... Qd4 {[%clk 0:01:20.1]} 27. Qb7 {[%clk 0:01:30.4]} 27...
Qf6 {[%clk 0:00:47.1]} 28. Bd5 {[%clk 0:01:22.4]} 28... Rb2 {[%clk 0:00:32.8]}
29. Qc6 {[%clk 0:01:08.3]} 29... Rdb8 {[%clk 0:00:25]} 30. Ra8 {[%clk
0:01:03.8]} 30... Rxa8 {[%clk 0:00:24.7]} 31. Qxa8+ {[%clk 0:01:04.7]} 31... Kh7
{[%clk 0:00:25.5]} 32. Qa3 {[%clk 0:01:02.3]} 32... Nf4 {[%clk 0:00:22.7]} 33.
Qf3 {[%clk 0:01:00.6]} 33... Ne2+ {[%clk 0:00:17.2]} 34. Kh1 {[%clk 0:01:00.4]}
34... Qxf3 {[%clk 0:00:16.3]} 35. Bxf3 {[%clk 0:00:59.8]} 35... f5 {[%clk
0:00:11.9]} 36. g3 {[%clk 0:00:54.2]} 36... Nd4 {[%clk 0:00:10.4]} 37. Bd5
{[%clk 0:00:54]} 37... Rc2 {[%clk 0:00:09.5]} 38. Kg2 {[%clk 0:00:50.4]} 38...
Kg6 {[%clk 0:00:09.4]} 39. Rd1 {[%clk 0:00:50.4]} 39... Nb3 {[%clk 0:00:06.3]}
40. Rb1 {[%clk 0:00:49]} 40... Nd2 {[%clk 0:00:06]} 41. Rb6+ {[%clk 0:00:48.3]}
41... Kh7 {[%clk 0:00:02.6]} 42. Bf7 {[%clk 0:00:47.1]} 42... Nxc4 {[%clk
0:00:02.6]} 43. Bg6+ {[%clk 0:00:47.4]} 1-0

[Event "Early-Titled-Tuesday-Blitz-March-19-2024"]
[Site "Chess.com"]
[Date "2024.03.19"]
[Round "5"]
[White "bobo_panda"]
[Black "Viktoker"]
[Result "1/2-1/2"]
[WhiteElo "2347"]
[BlackElo "2544"]
[TimeControl "180+1"]
[EndTime "8:57:05 PDT"]
[Termination "Game drawn by repetition"]

1. e4 {[%clk 0:03:00.9]} 1... c5 {[%clk 0:02:55.3]} 2. Nf3 {[%clk 0:03:00.3]}
2... d6 {[%clk 0:02:54.6]} 3. d4 {[%clk 0:03:00.9]} 3... cxd4 {[%clk 0:02:55.5]}
4. Nxd4 {[%clk 0:03:00.7]} 4... Nf6 {[%clk 0:02:53.7]} 5. Nc3 {[%clk 0:03:01.2]}
5... a6 {[%clk 0:02:53.8]} 6. h3 {[%clk 0:03:01.5]} 6... e5 {[%clk 0:02:52.2]}
7. Nde2 {[%clk 0:03:01.6]} 7... h5 {[%clk 0:02:47.6]} 8. Bg5 {[%clk 0:03:01.4]}
8... Be6 {[%clk 0:02:45.1]} 9. Bxf6 {[%clk 0:03:02]} 9... Qxf6 {[%clk
0:02:45.2]} 10. Nd5 {[%clk 0:03:02.6]} 10... Qd8 {[%clk 0:02:44.3]} 11. Nec3
{[%clk 0:03:03.2]} 11... Nd7 {[%clk 0:02:38.1]} 12. Bc4 {[%clk 0:03:03.2]} 12...
g6 {[%clk 0:02:22.3]} 13. O-O {[%clk 0:03:02.5]} 13... Bg7 {[%clk 0:02:12.7]}
14. Bb3 {[%clk 0:03:00.7]} 14... O-O {[%clk 0:02:08.6]} 15. f4 {[%clk
0:03:01.2]} 15... exf4 {[%clk 0:02:04.8]} 16. Nxf4 {[%clk 0:03:01.7]} 16... Bxb3
{[%clk 0:02:01.2]} 17. axb3 {[%clk 0:03:02.6]} 17... Ne5 {[%clk 0:01:58.5]} 18.
Ncd5 {[%clk 0:02:55.8]} 18... Qh4 {[%clk 0:01:47.5]} 19. Qd2 {[%clk 0:02:29.6]}
19... Bh6 {[%clk 0:01:36.6]} 20. Qd4 {[%clk 0:02:13.1]} 20... Rac8 {[%clk
0:00:50.8]} 21. c3 {[%clk 0:02:08.4]} 21... Kh7 {[%clk 0:00:45.8]} 22. Qb6
{[%clk 0:02:03.8]} 22... Rc6 {[%clk 0:00:33.2]} 23. Qxb7 {[%clk 0:01:57.9]}
23... Bxf4 {[%clk 0:00:33.4]} 24. Rxf4 {[%clk 0:01:56.8]} 24... Qd8 {[%clk
0:00:29.4]} 25. Raf1 {[%clk 0:01:48.5]} 25... Kg7 {[%clk 0:00:26.9]} 26. Rxf7+
{[%clk 0:01:42.1]} 26... Rxf7 {[%clk 0:00:24.9]} 27. Rxf7+ {[%clk 0:01:41.9]}
27... Nxf7 {[%clk 0:00:24.9]} 28. Qxc6 {[%clk 0:01:42.1]} 28... a5 {[%clk
0:00:22.9]} 29. Qc7 {[%clk 0:01:39]} 29... Qh4 {[%clk 0:00:20.7]} 30. Qe7 {[%clk
0:01:29.8]} 30... Qe1+ {[%clk 0:00:19.2]} 31. Kh2 {[%clk 0:01:29.6]} 31... Qf2
{[%clk 0:00:19.2]} 32. Qe6 {[%clk 0:00:46.5]} 32... Ng5 {[%clk 0:00:18.6]} 33.
Qe7+ {[%clk 0:00:19]} 33... Nf7 {[%clk 0:00:18.7]} 34. b4 {[%clk 0:00:17.7]}
34... h4 {[%clk 0:00:16.9]} 35. bxa5 {[%clk 0:00:17.2]} 35... Qg3+ {[%clk
0:00:14.9]} 36. Kg1 {[%clk 0:00:17.5]} 36... Qe1+ {[%clk 0:00:15.2]} 37. Kh2
{[%clk 0:00:17.9]} 37... Qg3+ {[%clk 0:00:11]} 38. Kg1 {[%clk 0:00:17.8]} 38...
Qe1+ {[%clk 0:00:09.6]} 39. Kh2 {[%clk 0:00:18.1]} 39... Qg3+ {[%clk 0:00:10.5]}
1/2-1/2

[Event "Early-Titled-Tuesday-Blitz-March-19-2024"]
[Site "Chess.com"]
[Date "2024.03.19"]
[Round "5"]
[White "grandcoach"]
[Black "Kotofeyca"]
[Result "0-1"]
[WhiteElo "2253"]
[BlackElo "2453"]
[TimeControl "180+1"]
[EndTime "8:57:07 PDT"]
[Termination "Kotofeyca won on time"]

1. e4 {[%clk 0:03:00.2]} 1... c5 {[%clk 0:02:59.6]} 2. b4 {[%clk 0:02:58.8]}
2... cxb4 {[%clk 0:02:57.7]} 3. a3 {[%clk 0:02:57.8]} 3... d5 {[%clk 0:02:56.7]}
4. exd5 {[%clk 0:02:57]} 4... Nf6 {[%clk 0:02:55.4]} 5. Nf3 {[%clk 0:02:48.8]}
5... Nxd5 {[%clk 0:02:54.2]} 6. axb4 {[%clk 0:02:33.6]} 6... Nxb4 {[%clk
0:02:47.3]} 7. Bc4 {[%clk 0:02:26.3]} 7... Bf5 {[%clk 0:02:36.1]} 8. d3 {[%clk
0:02:03.1]} 8... e6 {[%clk 0:02:29.1]} 9. O-O {[%clk 0:01:54]} 9... N8c6 {[%clk
0:02:27.4]} 10. Ba3 {[%clk 0:01:29.9]} 10... Be7 {[%clk 0:02:19.6]} 11. c3
{[%clk 0:01:26.1]} 11... Nxd3 {[%clk 0:02:04.8]} 12. Bxe7 {[%clk 0:01:22.4]}
12... Nxe7 {[%clk 0:01:45.7]} 13. Nd4 {[%clk 0:01:21]} 13... Ne5 {[%clk
0:01:30.3]} 14. Qa4+ {[%clk 0:01:03.6]} 14... N5c6 {[%clk 0:01:15.6]} 15. Nxf5
{[%clk 0:01:00]} 15... Nxf5 {[%clk 0:01:12.7]} 16. Bb5 {[%clk 0:00:53]} 16...
Ne7 {[%clk 0:01:07.9]} 17. Rd1 {[%clk 0:00:48.2]} 17... Qc7 {[%clk 0:01:07.9]}
18. Nd2 {[%clk 0:00:27.6]} 18... O-O {[%clk 0:01:07.4]} 19. Qg4 {[%clk
0:00:20.1]} 19... Ne5 {[%clk 0:00:59.5]} 20. Qg3 {[%clk 0:00:18.8]} 20... Rfc8
{[%clk 0:00:57.6]} 21. Ne4 {[%clk 0:00:17.1]} 21... Qxc3 {[%clk 0:00:48.1]} 22.
Nxc3 {[%clk 0:00:16.6]} 22... Rxc3 {[%clk 0:00:49]} 23. Qxe5 {[%clk 0:00:16.1]}
23... Rcc8 {[%clk 0:00:36.7]} 24. Rd3 {[%clk 0:00:12.2]} 24... Ng6 {[%clk
0:00:36.3]} 25. Qd6 {[%clk 0:00:10.5]} 25... a6 {[%clk 0:00:35.2]} 26. Ba4
{[%clk 0:00:09.2]} 26... h6 {[%clk 0:00:31.6]} 27. Bb3 {[%clk 0:00:09]} 27...
Rc6 {[%clk 0:00:30.3]} 28. Qd7 {[%clk 0:00:08.1]} 28... Rac8 {[%clk 0:00:30.1]}
29. Qxb7 {[%clk 0:00:06.4]} 29... Ne5 {[%clk 0:00:28.6]} 30. Rdd1 {[%clk
0:00:05.4]} 30... Rc3 {[%clk 0:00:26.7]} 31. Ba4 {[%clk 0:00:02.9]} 31... R8c7
{[%clk 0:00:19.8]} 32. Qb8+ {[%clk 0:00:02.4]} 32... Kh7 {[%clk 0:00:19.4]} 33.
Qb6 {[%clk 0:00:01.9]} 33... R7c4 {[%clk 0:00:17.4]} 0-1